Cogmind - Beta 14 *** ADVENTURER MODE // 2024.12.23 @ 13:28:36 Player: x1b Result: Destroyed by G-47 Trooper with Particle Gun Performance ------------- Evolutions (2) 1000 Regions Visited (3) 600 Robots Destroyed (25) 125 Value Destroyed (888) 888 Prototype IDs (0) 0 Alien Tech Used (0) 0 Bonus (0) 0 TOTAL SCORE: 2613 Bonus ------- None Cogmind --------- Core Integrity 0/550 Matter 196/300 Energy 98/100 System Corruption 14% Temperature Cool (18) Movement Core (50) Location -8/Materials Parts ------- > --- POWER (1) -------- (None) > --- PROPULSION (3) --- (None) > --- UTILITY (4) ------ (None) > --- WEAPON (3) ------- (None) > --- INVENTORY (5) ---- Aluminum Leg Medium Storage Unit Large Storage Unit Sensor Array Beam Rifle Peak State ------------ > --- POWER ------------ Ion Engine > --- PROPULSION ------- Aluminum Leg Aluminum Leg Aluminum Leg > --- UTILITY ---------- Heat Sink Large Storage Unit Sensor Array System Shield > --- WEAPON ----------- EM Shotgun High-powered Shotgun Missile Launcher > --- INVENTORY -------- Ion Engine Light Ion Engine Improved Ion Engine Light Deuterium Engine Light Deuterium Engine Aluminum Leg Medium Storage Unit Large Storage Unit Sensor Array ECM Suite Shield Generator Beam Rifle Beam Cannon Light Assault Rifle Heavy Assault Rifle [Rating: 20] Favorites ----------- Power Ion Engine Engine Ion Engine Propulsion Aluminum Leg Leg Aluminum Leg Utility Sensor Array Device Sensor Array Storage Large Storage Unit Hackware System Shield Weapon Light Assault Rifle Energy Gun EM Shotgun Energy Cannon Beam Cannon Ballistic Gun Light Assault Rifle Launcher Missile Launcher Build | -11 -10 -9 -8 ------- Run | Yrd Mat Mat Mat Slots Evolved 4 | . . 2 2 Power . | . . . . Propulsion 1 | . . 1 . Utility 2 | . . 1 1 Weapon 1 | . . . 1 Parts Attached 21 | 5 3 8 5 Power 1 | 1 . . . Engine 1 | 1 . . . Core . | . . . . Reactor . | . . . . Propulsion 6 | 2 . 3 1 Treads . | . . . . Leg 6 | 2 . 3 1 Wheel . | . . . . Hover . | . . . . Flight . | . . . . Utility 7 | . 3 3 1 Device 5 | . 3 2 . Storage 1 | . . 1 . Processor . | . . . . Hackware 1 | . . . 1 Protection . | . . . . Artifact . | . . . . Weapon 7 | 2 . 2 3 Energy Gun 1 | . . . 1 Energy Cannon 1 | . . 1 . Ballistic Gun 4 | 2 . 1 1 Ballistic Cannon . | . . . . Launcher 1 | . . . 1 Special Weapon . | . . . . Impact Weapon . | . . . . Slashing Weapon . | . . . . Piercing Weapon . | . . . . Special Melee Weapon . | . . . . Unidentified Prototypes . | . . . . Parts Lost 10 | . . 1 9 Power 1 | . . . 1 Propulsion 3 | . . . 3 Utility 3 | . . 1 2 Weapon 3 | . . . 3 Highest Loss Streak 8 | . . 1 8 To Critical Strikes . | . . . . Average Slot Usage (%) 85 | . 92 92 65 Engine 10 | . 14 11 5 Leg 25 | . 28 28 17 Device 17 | . 21 19 11 Storage 8 | . . 10 6 Hackware 1 | . . . 6 Energy Gun 1 | . . . 4 Energy Cannon 6 | . . 9 2 Ballistic Gun 12 | . 28 12 6 Peak Build Rating 20 | 5 7 12 20 Average Rating 9 | 4 6 9 12 On Entrance 6 | . 5 7 12 Naked Turns 104 | . . . 104 Heaviest Build 39 | 7 11 33 39 Greatest Support 30 | 20 20 30 30 Greatest Overweight (x) 7 | . . 1 7 Average Overweight (x) . | . . . . Largest Inventory Capacity 15 | 5 5 15 15 Average Capacity 12 | 5 5 14 12 Most Carried 15 | 2 3 14 15 Average Carried 8 | . 1 9 11 Final Capacity 15 | 5 5 15 5 Final Carried 13 | 1 3 13 5 Class Distribution -------------------- 51% | Mutant 31% | Scavenger-Mutant 9% | Scavenger-Skirmisher 3% | Hacker-Mutant 3% | Hacker-Skirmisher Dominant Class ---------------- Mutant | -10/Materials Scavenger-Mutant | -9/Materials Scavenger-Skirmisher | -8/Materials Resources | -11 -10 -9 -8 ----------- Run | Yrd Mat Mat Mat Matter Collected 472 | 230 48 149 45 Remotely . | . . . . Salvage Created 882 | . 77 533 272 Parts 49 | . 7 27 15 Haulers Intercepted . | . . . . Recyclers Shooed 4 | . 1 . 3 Parts Field Recycled . | . . . . Retrieved Matter . | . . . . Parts Self-Destructed . | . . . . Prevented . | . . . . Kills | -11 -10 -9 -8 ------- Run | Yrd Mat Mat Mat Combat Hostiles Destroyed 21 | . 3 10 8 Guns 11 | . 3 4 4 Cannons 6 | . . 6 . AOE 4 | . . . 4 Classes Destroyed 6 | . 2 3 1 Mechanic 1 | . . . 1 Watcher 3 | . 1 2 . Swarmer 3 | . 3 . . Grunt 12 | . . 6 6 Duelist 1 | . . 1 . Sentry 5 | . . 3 2 Best Kill Streak 9 | . 3 3 9 Combat Bots Only 8 | . 3 2 8 Max Kills in Single Turn 2 | . 1 1 2 Gunslinging . | . . . . Exploded 2 | . . . 2 Melee . | . . . . Uniques/NPCs Destroyed . | . . . . Combat | -11 -10 -9 -8 -------- Run | Yrd Mat Mat Mat Hostile Shots Fired 157 | . 15 65 77 Missed 45 | . 4 22 19 Damage Taken 1994 | . 68 528 1398 Core 639 | . 19 70 550 Absorbed by Shields . | . . . . Ignored by Resistances 377 | . 22 152 203 Core Remaining (%) 91 | 100 92 82 . Volleys Fired 70 | . 13 48 9 Largest 3 | . 2 2 3 Hottest 106 | . 40 83 106 Shots Fired 145 | . 26 96 23 Gun 88 | . 26 48 14 Cannon 48 | . . 48 . Launcher 9 | . . . 9 Special . | . . . . Kinetic 83 | . 26 48 9 Thermal 48 | . . 48 . Explosive 9 | . . . 9 Electromagnetic 5 | . . . 5 Robot Hit Streak 22 | . 6 22 8 Robot Miss Streak 3 | . 3 2 1 Penetration Max . | . . . . Secondary Targets 1 | . 1 . . Max Gunslinging Chain 1 | . 1 . . Shots Hit Robots 106 | . 18 71 17 Core Hits 55 | . 8 22 25 Critical Kills . | . . . . Critical Parts Destroyed . | . . . . Critical Strikes . | . . . . Melee Attacks . | . . . . Impact . | . . . . Slashing . | . . . . Piercing . | . . . . Sneak Attacks . | . . . . Combat Hostiles . | . . . . Follow-up Attacks . | . . . . Damage Inflicted 2053 | 11 134 971 937 Guns 638 | . 129 321 188 Cannons 650 | . . 650 . Explosions 724 | . . . 724 Melee . | . . . . Ramming 41 | 11 5 . 25 Kinetic 560 | . 129 321 110 Thermal 760 | . . 650 110 Explosive 614 | . . . 614 Electromagnetic 78 | . . . 78 Impact . | . . . . Slashing . | . . . . Piercing . | . . . . Highest Corruption 14 | . . 1 14 Average Corruption 8 | . . 1 13 Corruption Purged . | . . . . Corruption Blocked . | . . . . Effects 9 | . . 2 7 Message Errors 3 | . . 2 1 Matter Fused 1 | . . . 1 Heat Flow Errors 1 | . . . 1 Data Loss (minor) 1 | . . . 1 Data Loss (major) 1 | . . . 1 Misdirections 2 | . . . 2 Overload Shots . | . . . . Overflow Damage 19 | . . 17 2 Projectiles 17 | . . 17 . Explosions 2 | . . . 2 Melee . | . . . . Knockbacks 1 | . . . 1 Impact 1 | . . . 1 Kinetic . | . . . . Secondary . | . . . . Self-Inflicted Damage 10 | . . . 10 Shots 1 | . . . 1 Rammed 2 | . . . 2 Targets Rammed 13 | 3 5 1 4 Kicked 11 | 3 5 1 2 Crushed . | . . . . Highest Temperature 184 | . . 184 148 Average Temperature 54 | . . 58 33 Received Heat Transfer 750 | . . 228 522 Siege Activations . | . . . . Robots Corrupted . | . . . . Combat Hostiles . | . . . . Parts Fried . | . . . . Impact Corruptions . | . . . . Robots Melted . | . . . . Combat Hostiles . | . . . . Parts Melted 1 | . . 1 . Heat Transferred 1469 | . . 1369 100 Parts Sabotaged . | . . . . Parts Stolen . | . . . . Parts Stripped . | . . . . Power Chain Reactions 1 | . . . 1 Alert | -11 -10 -9 -8 ------- Run | Yrd Mat Mat Mat Peak Influence 383 | . 107 265 383 Initial 42 | . . 38 42 Average 98 | . 63 99 140 Maximum Alert Level 1 | . . 1 1 Low Security (%) 82 | 100 100 85 62 Level 1 17 | . . 14 37 Level 2 . | . . . . Level 3 . | . . . . Level 4 . | . . . . Level 5 . | . . . . High Security . | . . . . Max Security . | . . . . Squads Dispatched 4 | . . 2 2 Investigation . | . . . . Extermination . | . . . . Reinforcement 4 | . . 2 2 Assault . | . . . . Garrison . | . . . . Intercept . | . . . . Searches Triggered . | . . . . Construction Impeded 1 | . . . 1 Haulers Reinforced . | . . . . Active Scanning Responses . | . . . . Cargo Convoy Interrupts . | . . . . Stealth | -11 -10 -9 -8 --------- Run | Yrd Mat Mat Mat Distress Signals 3 | . . 2 1 Communications Jammed . | . . . . Distress Signals . | . . . . Times Spotted 54 | . 7 19 28 Peak Tracking Total 8 | . 4 5 8 Tactical Retreats 7 | . . 4 3 Traps | -11 -10 -9 -8 ------- Run | Yrd Mat Mat Mat Traps Triggered 2 | . . 2 . Indirectly . | . . . . Trap Hack Attempts . | . . . . Triggered . | . . . . Disarmed . | . . . . Reprogrammed . | . . . . Reused . | . . . . Traps Extracted . | . . . . Installed . | . . . . Triggered . | . . . . Machines | -11 -10 -9 -8 ---------- Run | Yrd Mat Mat Mat Machines Disabled 2 | . . . 2 Max in Single Turn 1 | . . . 1 Machines Repaired . | . . . . Machines Dismantled . | . . . . Machines Sabotaged . | . . . . Overloaded Fab Kills . | . . . . Hacking | -11 -10 -9 -8 --------- Run | Yrd Mat Mat Mat Machines Accessed 3 | . . 2 1 Terminals 3 | . . 2 1 Fabricators . | . . . . Repair Stations . | . . . . Recycling Units . | . . . . Scanalyzers . | . . . . Garrison Access . | . . . . Total Hacks 8 | . . 3 5 Successful 7 | . . 3 4 Failed 1 | . . . 1 Catastrophic . | . . . . Database Lockouts . | . . . . Manual . | . . . . Terminals 8 | . . 3 5 Fabricators . | . . . . Repair Stations . | . . . . Recycling Units . | . . . . Scanalyzers . | . . . . Garrison Access . | . . . . Terminal Hacks 7 | . . 3 4 Record 6 | . . 2 4 Alert Level 1 | . . 1 . Fabricator Hacks . | . . . . Repair Station Hacks . | . . . . Recycling Unit Hacks . | . . . . Scanalyzer . | . . . . Garrison Access Hacks . | . . . . Unauthorized Hacks . | . . . . Terminals . | . . . . Fabricators . | . . . . Repair Stations . | . . . . Recycling Units . | . . . . Scanalyzers . | . . . . Garrison Access . | . . . . Data Cores Recovered . | . . . . Used . | . . . . Hacking Detections 1 | . . . 1 Full Trace Events . | . . . . Feedback Events . | . . . . Feedback Blocked . | . . . . Robot Schematics Acquired . | . . . . Robots Built . | . . . . Authchips . | . . . . Time . | . . . . Total Robot Build Rating . | . . . . Part Schematics Acquired . | . . . . Parts Built . | . . . . Authchips . | . . . . Time . | . . . . Total Part Build Rating . | . . . . Parts Repaired . | . . . . Time . | . . . . Parts Recycled . | . . . . Recycled Matter . | . . . . Retrieved Matter . | . . . . Retrieved Components . | . . . . Parts Scanalyzed . | . . . . Part Schematics Acquired . | . . . . Parts Damaged . | . . . . Bothacking | -11 -10 -9 -8 ------------ Run | Yrd Mat Mat Mat Used RIF Installer . | . . . . Robots Hacked . | . . . . Non-combat . | . . . . Combat . | . . . . Robot Hacks Applied . | . . . . Relay Couplers Released . | . . . . Fabnet Peak Effective % . | . . . . Robots Rewired . | . . . . Allies Hacked . | . . . . Hacks Repelled . | . . . . Allies | -11 -10 -9 -8 -------- Run | Yrd Mat Mat Mat Total Allies . | . . . . Largest Group . | . . . . Highest-Rated Group . | . . . . Highest-Rated Ally . | . . . . Total Orders . | . . . . Ally Attacks . | . . . . Total Damage . | . . . . Kills . | . . . . Allies Corrupted . | . . . . Allies Melted . | . . . . Intel | -11 -10 -9 -8 ------- Run | Yrd Mat Mat Mat Robot Analysis Total . | . . . . Derelict Logs Recovered . | . . . . Drone Launches . | . . . . Drone Recoveries . | . . . . Exploration | -11 -10 -9 -8 ------------- Run | Yrd Mat Mat Mat Turns Passed 1693 | 113 218 940 422 Spaces Moved 981 | 91 144 435 311 Core 196 | 11 . . 185 Treads . | . . . . Legs 785 | 80 144 435 126 Wheels . | . . . . Hover . | . . . . Flight . | . . . . Fastest Speed 50 | 50 120 120 50 Average Speed 141 | 111 120 173 116 Slowest Speed 400 | 120 120 190 400 Overloaded Moves . | . . . . Propulsion Burnouts . | . . . . Robots Hopped . | . . . . Cave-ins Triggered 2 | . . . 2 Exploration Rate (%) 22 | 5 24 34 28 Regions Visited 3 Branch Regions . Pre-discovered Areas . | . . . . Known Exits Taken . | . . . . Unknown Exits Taken 3 | 1 1 1 . Scrap Searched . | . . . . Spaces Dug . | . . . . Terrain Destroyed 53 | . . . 53 Melee . | . . . . Projectile . | . . . . AOE 53 | . . . 53 Terrain Rammed . | . . . . Walls Destroyed . | . . . . Machines Disabled . | . . . . Actions | -11 -10 -9 -8 --------- Run | Yrd Mat Mat Mat Total 1138 | 100 166 527 345 Wait 41 | . . 26 15 Move 978 | 90 143 434 311 Hop . | . . . . Pick Up 13 | 2 1 9 1 Fast Attach 12 | 4 3 3 2 Attach 2 | 1 . 1 . Detach 1 | . 1 . . Swap 7 | . . 4 3 Drop 1 | . . 1 . Fire 70 | . 13 48 9 Melee . | . . . . Ram 2 | . . . 2 Kick 11 | 3 5 1 2 Crush . | . . . . Escape Stasis . | . . . . Rewire . | . . . . Trap . | . . . . Miscellaneous . | . . . . Route ------- -11/Scrapyard -10/Materials -9/Materials -8/Materials (discovered 1 exit: [*Fac]) History --------- Turn | Location | Event 4 | -11/Scrapyard | Discovered new exit (range 15) 114 | -11/Scrapyard | Entered Materials 283 | -10/Materials | Discovered new exit (range 16) 309 | -10/Materials | Build established: Mutant 332 | -10/Materials | Entered another Materials area 332 | -9/Materials | Evolved 2 slots: Propulsion x1, Utility x1 1078 | -9/Materials | Build established: Scavenger-Mutant 1228 | -9/Materials | Discovered new exit (range 10) 1272 | -9/Materials | Entered another Materials area 1272 | -8/Materials | Evolved 2 slots: Utility x1, Weapon x1 1542 | -8/Materials | Crushed by falling debris 1542 | -8/Materials | System corruption reached 10% 1552 | -8/Materials | Crushed by falling debris 1572 | -8/Materials | Destroyed 8 combat bots 1583 | -8/Materials | Lost 8 parts (1p3n2u2w) 1590 | -8/Materials | Released all parts (2) 1598 | -8/Materials | Core integrity fell below 50% 1651 | -8/Materials | Core integrity fell below 20% 1694 | -8/Materials | Discovered new exit (range 16) 1694 | -8/Materials | Destroyed by G-47 Trooper with Particle Gun Last Messages --------------- Released Lrg. Storage Unit. The unstable cave ceiling collapses. System corrupted: Matter fused (-7). Acquired 14 matter. Acquired 18 matter. The unstable cave ceiling collapses. Critical hit (Burn: +37). U-05 Engineer lays Concrete. Slammed into T-07 Excavator. U-05 Engineer lays Concrete. Slammed into R-06 Scavenger. U-05 Engineer lays Concrete. System corrupted: Heat flow error (+179). O-16 Technician: "IFF HANDSHAKE FAILED. SECURING TERMINAL." ALERT: Hostiles spotted, dispatching reinforcements to Terminal M005. DKTIAT=Q :QCRA6>/RBHWFVY:R4ZLMQUHPB Connecting with Terminal... EXIT=FOUND Map ----- +----------------------------------------------------+ | ?????????????????????# | | ?????????????????????# | | ?????????????????????# ###+### | | ?????????????????????# #? ###### | | ?????????????????????# #? #????? | | ?????????????????????# ## #????? | | ?????????????????????# ## #????? | | ?????????????????????/ ## #????? | | ???????????????????? # ## #????? | | ???????????????????" # ## #????? | | ???????????????????"?# ######????? | | ?????????????????? ?# #?????????? | | ?????????????????##??# #?????????? | | ?????????????????????# #?????????? | | ?????????????????????# #?????????? | | ?????????????????????# #?????????? | | ?????????????????????# +?????????? | | ?????????????????????# #?????????? | | ?????????????????????# #?????????? | | ???????#????????????## ##????????? | | ?####### ?########### #????????? | | # ?# #????????? | | # ! # T #????????? | | # # #????????? | | # ! + g####### #????????? | | # ] #@g #?????#######????????? | | # # g #????????????????????? | | # ?# #????????????????????? | | # "T"?# #????????????????????? | | ?#######??# #????????????????????? | | ??????????# #????????????????????? | | ??????????# #????????????????????? | | ??????????# #????????????????????? | | ??????????# #????????????????????? | | ??????????# #????????????????????? | | ??????????# #????????????????????? | | ??????????# #????????????????????? | | ??????????? #????????????????????? | | ??????????? +????????????????????? | | ??????????? #????????????????????? | | ??????????? < ?????????????????????? | | ???????????????????????????????????? | | ???????????????????????????????????? | | ???????????????????????????????????? | | ???????????????????????????????????? | | ???????????????????????????????????? | | ???????????????????????????????????? | | ???????????????????????????????????? | | ???????????????????????????????????? | | ???????????????????????????????????? | +----------------------------------------------------+ Best States ------------- Heat Dissipation 41 Energy Generation 10 Energy Capacity 250 Matter Stores 300 Matter Capacity 300 Sight Range 16 Robot Scan Range 14 Terrain Scan Density 10 ECM Strength 1 Resistance: KI 20 Resistance: TH 20 Resistance: EX 20 Resistance: EM 20 Resistance: I 20 Resistance: S 20 Resistance: P 20 Evasion (%) 55 Offensive Hacking 10 Defensive Hacking 10 Item Schematics ----------------- None Robot Schematics ------------------ None Fabricated ------------ Nothing Alien Tech Used ----------------- None Achievements -------------- None Challenges ------------ None Game ------ Seed SensorMultitargetingDiverter Manual? 0 Play Time 00:17:28 Cumulative 2.1 hours Start 2024.12.23 @ 12:59:05 End 2024.12.23 @ 13:28:36 Sessions 1 Manual Loads 0 Difficulty Adventurer Special Mode None Game No. 5 Rogue 0 Adventurer 5 Explorer 0 Win Type - Total 0 Types 0/0/0/0/0/0/0/0/0 Lore% 1 Gallery% 7 Achievement% 5 Wizard Run 0 Options --------- Layout 1 ASCII 0 Keyboard 0 Movement Arrows Keybinds 0 Fullscreen 1 Font 24/Smallcaps Map View 50x35 Zoom Use 0% Tactical HUD 0 Map Filters NONE Filters NONE Steam 1 RUN: 35631fb6-7ed4-4e7c-8fb8-3602e81c6711